[Event "Titled Tuesday Blitz December 14 2021"]
[White "Pichot, Alan"]
[Black "Shubin, Kirill"]
[WhiteFideId "110973"]
[BlackFideId "34119962"]
[WhiteElo "2629"]
[BlackElo "2501"]
[Result "1-0"]
[Round "05"]
[TimeControl "180+1"]
[Date "2021.12.14"]
[WhiteClock "0:00:06"]
[BlackClock "0:00:06"]

1. e4 {[%clk 0:03:00]}  e6 {[%clk 0:02:57]} 2. d4 {[%clk 0:03:00]}  d5 {[%clk 0:02:57]} 3. Nc3 {[%clk 0:03:01]}  Bb4 {[%clk 0:02:56]} 4. e5 {[%clk 0:03:01]}  b6 {[%clk 0:02:56]} 5. a3 {[%clk 0:03:01]}  Bf8 {[%clk 0:02:55]} 6. h4 {[%clk 0:03:00]}  c5 {[%clk 0:02:53]} 7. Nf3 {[%clk 0:02:58]}  Nc6 {[%clk 0:02:50]} 8. Bb5 {[%clk 0:02:54]}  Bd7 {[%clk 0:02:50]} 9. Bxc6 {[%clk 0:02:55]}  Bxc6 {[%clk 0:02:49]} 10. h5 {[%clk 0:02:50]}  h6 {[%clk 0:02:49]} 11. Be3 {[%clk 0:02:44]}  Rc8 {[%clk 0:02:46]} 12. Qd3 {[%clk 0:02:39]}  Qd7 {[%clk 0:02:36]} 13. O-O {[%clk 0:02:33]}  c4 {[%clk 0:02:27]} 14. Qe2 {[%clk 0:02:26]}  b5 {[%clk 0:02:25]} 15. Ne1 {[%clk 0:02:10]}  a5 {[%clk 0:02:19]} 16. f4 {[%clk 0:02:10]}  Ne7 {[%clk 0:02:14]} 17. g4 {[%clk 0:02:03]}  g6 {[%clk 0:02:01]} 18. hxg6 {[%clk 0:02:01]}  fxg6 {[%clk 0:02:02]} 19. Nd1 {[%clk 0:01:46]}  h5 {[%clk 0:01:58]} 20. Nf2 {[%clk 0:01:46]}  Kd8 {[%clk 0:01:44]} 21. Nf3 {[%clk 0:01:43]}  Kc7 {[%clk 0:01:40]} 22. Kg2 {[%clk 0:01:42]}  Bh6 {[%clk 0:01:29]} 23. Rh1 {[%clk 0:01:37]}  Rhf8 {[%clk 0:01:23]} 24. Qd2 {[%clk 0:01:37]}  Kb6 {[%clk 0:01:15]} 25. Rag1 {[%clk 0:01:23]}  Rf7 {[%clk 0:01:07]} 26. Kf1 {[%clk 0:01:16]}  Rcf8 {[%clk 0:01:04]} 27. Nh3 {[%clk 0:01:16]}  hxg4 {[%clk 0:01:02]} 28. Rxg4 {[%clk 0:01:17]}  Nf5 {[%clk 0:01:01]} 29. Bf2 {[%clk 0:01:16]}  Rh7 {[%clk 0:00:48]} 30. Ke2 {[%clk 0:01:08]}  Rfh8 {[%clk 0:00:41]} 31. Be1 {[%clk 0:00:56]}  Bxf4 {[%clk 0:00:33]} 32. Qxa5+ {[%clk 0:00:43]}  Kb7 {[%clk 0:00:33]} 33. Rxf4 {[%clk 0:00:16]}  Rxh3 {[%clk 0:00:32]} 34. Rxh3 {[%clk 0:00:17]}  Rxh3 {[%clk 0:00:32]} 35. Bb4 {[%clk 0:00:18]}  g5 {[%clk 0:00:16]} 36. Rg4 {[%clk 0:00:15]}  Qf7 {[%clk 0:00:12]} 37. Bc5 {[%clk 0:00:12]}  Qc7 {[%clk 0:00:07]} 38. Qxc7+ {[%clk 0:00:07]}  Kxc7 {[%clk 0:00:08]} 39. Nxg5 {[%clk 0:00:03]}  Rh2+ {[%clk 0:00:07]} 40. Kf3 {[%clk 0:00:03]}  Bd7 {[%clk 0:00:07]} 41. c3 {[%clk 0:00:03]}  Rxb2 {[%clk 0:00:06]} 42. Nf7 {[%clk 0:00:04]}  Rc2 {[%clk 0:00:06]} 43. Bb4 {[%clk 0:00:04]}  Be8 {[%clk 0:00:04]} 44. Ng5 {[%clk 0:00:02]}  Bh5 {[%clk 0:00:03]} 45. Nxe6+ {[%clk 0:00:03]}  Kd7 {[%clk 0:00:03]} 46. Nf4 {[%clk 0:00:04]}  Bxg4+ {[%clk 0:00:03]} 47. Kxg4 {[%clk 0:00:04]}  Ne3+ {[%clk 0:00:03]} 48. Kf3 {[%clk 0:00:05]}  Nd1 {[%clk 0:00:03]} 49. Nxd5 {[%clk 0:00:06]}  Ke6 {[%clk 0:00:03]} 50. Nf4+ {[%clk 0:00:05]}  Kf5 {[%clk 0:00:04]} 51. Nd5 {[%clk 0:00:04]}  Rf2+ {[%clk 0:00:03]} 52. Kg3 {[%clk 0:00:04]}  Rf1 {[%clk 0:00:03]} 53. Nc7 {[%clk 0:00:03]}  Ne3 {[%clk 0:00:02]} 54. e6 {[%clk 0:00:04]}  Rd1 {[%clk 0:00:02]} 55. e7 {[%clk 0:00:04]}  Re1 {[%clk 0:00:02]} 56. e8=Q {[%clk 0:00:04]}  Nf1+ {[%clk 0:00:03]} 57. Kf2 {[%clk 0:00:05]}  Rxe8 {[%clk 0:00:04]} 58. Nxe8 {[%clk 0:00:06]}  Nd2 {[%clk 0:00:05]} 59. Nd6+ {[%clk 0:00:06]}  Ke6 {[%clk 0:00:05]} 60. Nxb5 {[%clk 0:00:07]}  Kd5 {[%clk 0:00:06]} 61. Ke3 {[%clk 0:00:07]}  Ne4 {[%clk 0:00:06]} 62. Nc7+ {[%clk 0:00:06]} 1-0


[Site "https://www.chess.com"]

[Event "Titled Tuesday Blitz December 14 2021"]
[White "Svane, Rasmus"]
[Black "Belyakov, Bogdan"]
[WhiteFideId "4657101"]
[BlackFideId "24104795"]
[WhiteElo "2643"]
[BlackElo "2407"]
[Result "0-1"]
[Round "05"]
[TimeControl "180+1"]
[Date "2021.12.14"]
[WhiteClock "0:00:06"]
[BlackClock "0:00:46"]

1. Nf3 {[%clk 0:03:00]}  Nf6 {[%clk 0:03:00]} 2. g3 {[%clk 0:03:01]}  g6 {[%clk 0:03:00]} 3. Bg2 {[%clk 0:03:01]}  Bg7 {[%clk 0:03:01]} 4. O-O {[%clk 0:03:02]}  O-O {[%clk 0:03:01]} 5. d4 {[%clk 0:03:02]}  d6 {[%clk 0:03:01]} 6. Re1 {[%clk 0:03:02]}  Nc6 {[%clk 0:02:58]} 7. d5 {[%clk 0:03:02]}  Nb8 {[%clk 0:02:56]} 8. c4 {[%clk 0:03:02]}  e5 {[%clk 0:02:52]} 9. dxe6 {[%clk 0:03:03]}  Bxe6 {[%clk 0:02:49]} 10. Nd4 {[%clk 0:03:03]}  Bc8 {[%clk 0:02:49]} 11. Nc3 {[%clk 0:03:03]}  Re8 {[%clk 0:02:41]} 12. Bf4 {[%clk 0:03:00]}  Nbd7 {[%clk 0:02:40]} 13. Qd2 {[%clk 0:02:59]}  Ne5 {[%clk 0:02:33]} 14. b3 {[%clk 0:02:59]}  a6 {[%clk 0:02:23]} 15. Rad1 {[%clk 0:02:58]}  Qe7 {[%clk 0:02:21]} 16. Bg5 {[%clk 0:02:56]}  Qf8 {[%clk 0:02:21]} 17. h3 {[%clk 0:02:39]}  h6 {[%clk 0:02:20]} 18. Be3 {[%clk 0:02:39]}  Rb8 {[%clk 0:02:15]} 19. Nd5 {[%clk 0:02:39]}  Nxd5 {[%clk 0:02:14]} 20. cxd5 {[%clk 0:02:40]}  b5 {[%clk 0:01:09]} 21. Rc1 {[%clk 0:02:38]}  Rb7 {[%clk 0:01:09]} 22. Rc2 {[%clk 0:02:30]}  Kh7 {[%clk 0:01:09]} 23. Rec1 {[%clk 0:02:29]}  Re7 {[%clk 0:01:08]} 24. f4 {[%clk 0:02:07]}  Nd7 {[%clk 0:01:08]} 25. Rxc7 {[%clk 0:01:55]}  Rxc7 {[%clk 0:01:08]} 26. Rxc7 {[%clk 0:01:55]}  Qd8 {[%clk 0:01:07]} 27. Rc1 {[%clk 0:01:23]}  Qe8 {[%clk 0:01:04]} 28. Bf2 {[%clk 0:01:09]}  Nc5 {[%clk 0:01:04]} 29. Nc6 {[%clk 0:00:57]}  Rxe2 {[%clk 0:01:03]} 30. Qd1 {[%clk 0:00:49]}  Bf5 {[%clk 0:00:56]} 31. Bxc5 {[%clk 0:00:25]}  dxc5 {[%clk 0:00:55]} 32. g4 {[%clk 0:00:17]}  Qe3+ {[%clk 0:00:54]} 33. Kh1 {[%clk 0:00:17]}  Be4 {[%clk 0:00:52]} 34. Qxe2 {[%clk 0:00:06]}  Qxe2 {[%clk 0:00:51]} 35. Rg1 {[%clk 0:00:07]}  Qe3 {[%clk 0:00:46]} 36. Kh2 {[%clk 0:00:06]} 0-1


[Site "https://www.chess.com"]

[Event "Titled Tuesday Blitz December 14 2021"]
[White "Talibov, Shiroghlan"]
[Black "Moskvin, Anatoly"]
[WhiteFideId "13429078"]
[BlackFideId "24199990"]
[WhiteElo "2073"]
[BlackElo "2079"]
[Result "0-1"]
[Round "05"]
[TimeControl "180+1"]
[Date "2021.12.15"]
[WhiteClock "0:00:04"]
[BlackClock "0:00:05"]

1. c4 {[%clk 0:03:00]}  e5 {[%clk 0:02:59]} 2. Nc3 {[%clk 0:03:00]}  Nc6 {[%clk 0:02:59]} 3. Nf3 {[%clk 0:03:00]}  f5 {[%clk 0:02:57]} 4. e4 {[%clk 0:02:59]}  Nf6 {[%clk 0:02:55]} 5. exf5 {[%clk 0:02:59]}  e4 {[%clk 0:02:53]} 6. Nh4 {[%clk 0:02:47]}  Bc5 {[%clk 0:02:29]} 7. Be2 {[%clk 0:02:34]}  O-O {[%clk 0:02:27]} 8. O-O {[%clk 0:02:29]}  d6 {[%clk 0:02:26]} 9. d3 {[%clk 0:02:26]}  exd3 {[%clk 0:02:21]} 10. Bxd3 {[%clk 0:02:26]}  Ne5 {[%clk 0:02:22]} 11. Bg5 {[%clk 0:02:11]}  Nf7 {[%clk 0:02:01]} 12. Bf4 {[%clk 0:01:59]}  a6 {[%clk 0:01:18]} 13. Bg3 {[%clk 0:01:19]}  Ba7 {[%clk 0:01:09]} 14. Qd2 {[%clk 0:01:13]}  Nh5 {[%clk 0:00:51]} 15. Rfe1 {[%clk 0:00:52]}  Nxg3 {[%clk 0:00:50]} 16. hxg3 {[%clk 0:00:53]}  Ne5 {[%clk 0:00:50]} 17. Bc2 {[%clk 0:00:34]}  Kh8 {[%clk 0:00:36]} 18. Re4 {[%clk 0:00:18]}  g5 {[%clk 0:00:25]} 19. Nf3 {[%clk 0:00:14]}  Nxf3+ {[%clk 0:00:23]} 20. gxf3 {[%clk 0:00:15]}  Bxf5 {[%clk 0:00:23]} 21. Re2 {[%clk 0:00:11]}  Bxc2 {[%clk 0:00:23]} 22. Qxc2 {[%clk 0:00:12]}  Rxf3 {[%clk 0:00:23]} 23. Kg2 {[%clk 0:00:13]}  Rf7 {[%clk 0:00:19]} 24. Qe4 {[%clk 0:00:12]}  c6 {[%clk 0:00:18]} 25. Rd1 {[%clk 0:00:09]}  Qf8 {[%clk 0:00:16]} 26. Rdd2 {[%clk 0:00:08]}  Rd8 {[%clk 0:00:15]} 27. Nd1 {[%clk 0:00:06]}  Rdd7 {[%clk 0:00:15]} 28. Qd3 {[%clk 0:00:05]}  d5 {[%clk 0:00:15]} 29. Qc3+ {[%clk 0:00:04]}  Kg8 {[%clk 0:00:14]} 30. cxd5 {[%clk 0:00:04]}  Rxd5 {[%clk 0:00:13]} 31. Rxd5 {[%clk 0:00:05]}  cxd5 {[%clk 0:00:14]} 32. Qd3 {[%clk 0:00:05]}  Rf5 {[%clk 0:00:13]} 33. b3 {[%clk 0:00:05]}  Qf7 {[%clk 0:00:11]} 34. Qc2 {[%clk 0:00:04]}  g4 {[%clk 0:00:08]} 35. Qc8+ {[%clk 0:00:04]}  Kg7 {[%clk 0:00:08]} 36. Qc3+ {[%clk 0:00:04]}  d4 {[%clk 0:00:05]} 37. Qd3 {[%clk 0:00:05]}  Qd5+ {[%clk 0:00:05]} 38. Kg1 {[%clk 0:00:03]}  Rh5 {[%clk 0:00:05]} 39. Re4 {[%clk 0:00:02]}  Rg5 {[%clk 0:00:03]} 40. Ne3 {[%clk 0:00:01]}  Qd7 {[%clk 0:00:02]} 41. Nc4 {[%clk 0:00:02]}  h5 {[%clk 0:00:02]} 42. Ne5 {[%clk 0:00:02]}  Qf5 {[%clk 0:00:03]} 43. Rxd4 {[%clk 0:00:02]}  Qxe5 {[%clk 0:00:03]} 44. Rd7+ {[%clk 0:00:02]}  Kf6 {[%clk 0:00:03]} 45. Rd6+ {[%clk 0:00:03]}  Ke7 {[%clk 0:00:03]} 46. Rd7+ {[%clk 0:00:03]}  Ke6 {[%clk 0:00:04]} 47. Rd8 {[%clk 0:00:04]}  Qe1+ {[%clk 0:00:04]} 48. Kh2 {[%clk 0:00:04]}  Qxf2+ {[%clk 0:00:05]} 0-1


[Site "https://www.chess.com"]

[Event "Titled Tuesday Blitz December 14 2021"]
[White "Thavandiran, Shiyam"]
[Black "Sarana, Alexey"]
[WhiteFideId "2605058"]
[BlackFideId "24133795"]
[WhiteElo "2357"]
[BlackElo "2672"]
[Result "0-1"]
[Round "05"]
[TimeControl "180+1"]
[Date "2021.12.14"]
[WhiteClock "0:00:08"]
[BlackClock "0:00:47"]

1. e4 {[%clk 0:03:00]}  c5 {[%clk 0:02:59]} 2. Nf3 {[%clk 0:03:01]}  d6 {[%clk 0:02:59]} 3. d4 {[%clk 0:03:02]}  cxd4 {[%clk 0:03:00]} 4. Nxd4 {[%clk 0:03:02]}  Nf6 {[%clk 0:03:00]} 5. Nc3 {[%clk 0:03:03]}  a6 {[%clk 0:03:01]} 6. h3 {[%clk 0:03:03]}  b5 {[%clk 0:02:57]} 7. a4 {[%clk 0:02:51]}  b4 {[%clk 0:02:56]} 8. Nd5 {[%clk 0:02:51]}  e6 {[%clk 0:02:56]} 9. Nxf6+ {[%clk 0:02:44]}  Qxf6 {[%clk 0:02:57]} 10. g4 {[%clk 0:02:37]}  Bb7 {[%clk 0:02:33]} 11. Bg2 {[%clk 0:02:37]}  Qd8 {[%clk 0:02:27]} 12. O-O {[%clk 0:02:31]}  Be7 {[%clk 0:02:27]} 13. Bd2 {[%clk 0:02:14]}  a5 {[%clk 0:02:26]} 14. c3 {[%clk 0:02:12]}  bxc3 {[%clk 0:02:26]} 15. Bxc3 {[%clk 0:02:13]}  O-O {[%clk 0:02:25]} 16. Rc1 {[%clk 0:02:03]}  Nd7 {[%clk 0:02:21]} 17. Nb5 {[%clk 0:02:03]}  Nc5 {[%clk 0:02:16]} 18. Re1 {[%clk 0:01:45]}  e5 {[%clk 0:02:13]} 19. b4 {[%clk 0:01:07]}  axb4 {[%clk 0:02:06]} 20. Bxb4 {[%clk 0:01:08]}  Qb6 {[%clk 0:01:58]} 21. Bxc5 {[%clk 0:01:02]}  dxc5 {[%clk 0:01:58]} 22. Nc3 {[%clk 0:00:39]}  Rfd8 {[%clk 0:01:38]} 23. Nd5 {[%clk 0:00:39]}  Bxd5 {[%clk 0:01:38]} 24. exd5 {[%clk 0:00:40]}  Bd6 {[%clk 0:01:39]} 25. Rb1 {[%clk 0:00:40]}  Qa5 {[%clk 0:01:37]} 26. Re4 {[%clk 0:00:38]}  g6 {[%clk 0:01:30]} 27. Bf1 {[%clk 0:00:38]}  f5 {[%clk 0:01:24]} 28. gxf5 {[%clk 0:00:38]}  gxf5 {[%clk 0:01:24]} 29. Rb7 {[%clk 0:00:39]}  Ra7 {[%clk 0:01:17]} 30. Rxa7 {[%clk 0:00:34]}  Qxa7 {[%clk 0:01:18]} 31. Re3 {[%clk 0:00:23]}  e4 {[%clk 0:01:17]} 32. Qh5 {[%clk 0:00:23]}  Qg7+ {[%clk 0:01:17]} 33. Kh1 {[%clk 0:00:21]}  Kh8 {[%clk 0:00:56]} 34. Qxf5 {[%clk 0:00:17]}  Rg8 {[%clk 0:00:56]} 35. Rg3 {[%clk 0:00:10]}  Bxg3 {[%clk 0:00:55]} 36. fxg3 {[%clk 0:00:10]}  Qxg3 {[%clk 0:00:48]} 37. Qf6+ {[%clk 0:00:11]}  Qg7 {[%clk 0:00:49]} 38. Qxg7+ {[%clk 0:00:11]}  Kxg7 {[%clk 0:00:50]} 39. a5 {[%clk 0:00:10]}  Kf6 {[%clk 0:00:49]} 40. Bb5 {[%clk 0:00:08]}  Ke5 {[%clk 0:00:48]} 41. Bc6 {[%clk 0:00:08]}  c4 {[%clk 0:00:47]} 42. a6 {[%clk 0:00:08]}  c3 {[%clk 0:00:47]} 0-1


[Site "https://www.chess.com"]

[Event "Titled Tuesday Blitz December 14 2021"]
[White "Timofeev, Artyom"]
[Black "Svane, Frederik"]
[WhiteFideId "4140419"]
[BlackFideId "12923044"]
[WhiteElo "2628"]
[BlackElo "2459"]
[Result "1-0"]
[Round "05"]
[TimeControl "180+1"]
[Date "2021.12.14"]
[WhiteClock "0:00:15"]
[BlackClock "0:00:01"]

1. c4 {[%clk 0:03:00]}  c5 {[%clk 0:02:58]} 2. Nf3 {[%clk 0:02:59]}  g6 {[%clk 0:02:57]} 3. g3 {[%clk 0:02:58]}  Nc6 {[%clk 0:02:57]} 4. Bg2 {[%clk 0:02:58]}  Bg7 {[%clk 0:02:57]} 5. O-O {[%clk 0:02:58]}  d6 {[%clk 0:02:58]} 6. Nc3 {[%clk 0:02:58]}  Bf5 {[%clk 0:02:57]} 7. h3 {[%clk 0:02:57]}  Nf6 {[%clk 0:02:56]} 8. d3 {[%clk 0:02:56]}  O-O {[%clk 0:02:56]} 9. Bd2 {[%clk 0:02:55]}  Rb8 {[%clk 0:02:52]} 10. Ne1 {[%clk 0:02:38]}  Qd7 {[%clk 0:02:42]} 11. Kh2 {[%clk 0:02:37]}  Be6 {[%clk 0:02:32]} 12. Nc2 {[%clk 0:02:22]}  d5 {[%clk 0:02:30]} 13. cxd5 {[%clk 0:02:21]}  Nxd5 {[%clk 0:02:31]} 14. Ne3 {[%clk 0:02:21]}  Nxe3 {[%clk 0:02:16]} 15. Bxe3 {[%clk 0:02:21]}  Nd4 {[%clk 0:02:09]} 16. Qd2 {[%clk 0:02:20]}  Rfd8 {[%clk 0:02:02]} 17. Bh6 {[%clk 0:02:18]}  Bh8 {[%clk 0:01:52]} 18. b3 {[%clk 0:02:09]}  Rbc8 {[%clk 0:01:46]} 19. Rac1 {[%clk 0:02:07]}  b6 {[%clk 0:01:45]} 20. Ne4 {[%clk 0:01:58]}  Bd5 {[%clk 0:01:40]} 21. Bg5 {[%clk 0:01:50]}  Bg7 {[%clk 0:01:38]} 22. Rfe1 {[%clk 0:01:47]}  Bb7 {[%clk 0:01:32]} 23. Bh6 {[%clk 0:01:42]}  Bh8 {[%clk 0:01:32]} 24. h4 {[%clk 0:01:32]}  Nf5 {[%clk 0:01:22]} 25. Bf4 {[%clk 0:01:29]}  h5 {[%clk 0:01:07]} 26. Red1 {[%clk 0:01:27]}  Bd5 {[%clk 0:00:49]} 27. Qe1 {[%clk 0:01:24]}  Qb7 {[%clk 0:00:47]} 28. Qf1 {[%clk 0:01:24]}  Nd4 {[%clk 0:00:46]} 29. Be3 {[%clk 0:01:16]}  Nf5 {[%clk 0:00:44]} 30. Bd2 {[%clk 0:01:13]}  Nd4 {[%clk 0:00:43]} 31. Bc3 {[%clk 0:01:11]}  f5 {[%clk 0:00:40]} 32. Bxd4 {[%clk 0:01:11]}  cxd4 {[%clk 0:00:40]} 33. Ng5 {[%clk 0:01:10]}  Bxg2 {[%clk 0:00:38]} 34. Qxg2 {[%clk 0:01:09]}  Qxg2+ {[%clk 0:00:37]} 35. Kxg2 {[%clk 0:01:10]}  Rc3 {[%clk 0:00:33]} 36. Rxc3 {[%clk 0:01:06]}  dxc3 {[%clk 0:00:33]} 37. Rc1 {[%clk 0:01:06]}  Bf6 {[%clk 0:00:25]} 38. b4 {[%clk 0:00:50]}  Rc8 {[%clk 0:00:17]} 39. Rc2 {[%clk 0:00:50]}  Bxg5 {[%clk 0:00:13]} 40. hxg5 {[%clk 0:00:50]}  e5 {[%clk 0:00:13]} 41. e4 {[%clk 0:00:32]}  Kf7 {[%clk 0:00:08]} 42. Kf3 {[%clk 0:00:30]}  Ke6 {[%clk 0:00:08]} 43. Ke3 {[%clk 0:00:30]}  Rc7 {[%clk 0:00:03]} 44. a4 {[%clk 0:00:29]}  Rc8 {[%clk 0:00:03]} 45. f3 {[%clk 0:00:25]}  Rc7 {[%clk 0:00:02]} 46. b5 {[%clk 0:00:25]}  Rc8 {[%clk 0:00:02]} 47. d4 {[%clk 0:00:25]}  exd4+ {[%clk 0:00:03]} 48. Kxd4 {[%clk 0:00:26]}  f4 {[%clk 0:00:03]} 49. gxf4 {[%clk 0:00:23]}  h4 {[%clk 0:00:03]} 50. Kd3 {[%clk 0:00:23]}  h3 {[%clk 0:00:03]} 51. Rc1 {[%clk 0:00:16]}  c2 {[%clk 0:00:01]} 52. Ke2 {[%clk 0:00:15]} 1-0


[Site "https://www.chess.com"]

[Event "Titled Tuesday Blitz December 14 2021"]
[White "Visakh N R"]
[Black "Agasarov, Benik"]
[WhiteFideId "25012223"]
[BlackFideId "13314823"]
[WhiteElo "2454"]
[BlackElo "2605"]
[Result "0-1"]
[Round "05"]
[TimeControl "180+1"]
[Date "2021.12.15"]
[WhiteClock "0:00:16"]
[BlackClock "0:00:13"]

1. e4 {[%clk 0:03:00]}  e5 {[%clk 0:02:22]} 2. Nf3 {[%clk 0:02:40]}  Nc6 {[%clk 0:02:22]} 3. Bb5 {[%clk 0:02:37]}  Bc5 {[%clk 0:02:21]} 4. O-O {[%clk 0:02:36]}  Nd4 {[%clk 0:02:21]} 5. Nxd4 {[%clk 0:02:35]}  Bxd4 {[%clk 0:02:22]} 6. c3 {[%clk 0:02:35]}  Bb6 {[%clk 0:02:21]} 7. d4 {[%clk 0:02:35]}  c6 {[%clk 0:02:21]} 8. Bc4 {[%clk 0:02:35]}  d6 {[%clk 0:02:21]} 9. dxe5 {[%clk 0:02:34]}  dxe5 {[%clk 0:02:21]} 10. Qxd8+ {[%clk 0:02:07]}  Bxd8 {[%clk 0:02:21]} 11. Be3 {[%clk 0:02:08]}  Nf6 {[%clk 0:02:20]} 12. f3 {[%clk 0:02:07]}  Bb6 {[%clk 0:02:18]} 13. Bxb6 {[%clk 0:02:07]}  axb6 {[%clk 0:02:19]} 14. a3 {[%clk 0:02:06]}  b5 {[%clk 0:02:19]} 15. Ba2 {[%clk 0:02:05]}  Ke7 {[%clk 0:02:19]} 16. Kf2 {[%clk 0:02:04]}  Be6 {[%clk 0:02:18]} 17. Bxe6 {[%clk 0:02:02]}  Kxe6 {[%clk 0:02:19]} 18. Nd2 {[%clk 0:02:02]}  Nd7 {[%clk 0:02:19]} 19. Nb3 {[%clk 0:02:02]}  f6 {[%clk 0:02:19]} 20. Rfd1 {[%clk 0:02:02]}  b6 {[%clk 0:02:19]} 21. Rd2 {[%clk 0:02:02]}  Rhd8 {[%clk 0:02:08]} 22. Rad1 {[%clk 0:02:02]}  Ke7 {[%clk 0:02:08]} 23. Ke3 {[%clk 0:01:57]}  Nf8 {[%clk 0:02:03]} 24. Rxd8 {[%clk 0:01:43]}  Rxd8 {[%clk 0:02:04]} 25. Rc1 {[%clk 0:01:38]}  Ne6 {[%clk 0:02:04]} 26. g3 {[%clk 0:01:37]}  c5 {[%clk 0:02:02]} 27. Re1 {[%clk 0:01:20]}  c4 {[%clk 0:02:02]} 28. Nc1 {[%clk 0:01:20]}  g6 {[%clk 0:01:59]} 29. Ke2 {[%clk 0:01:20]}  Nc5 {[%clk 0:01:58]} 30. Rd1 {[%clk 0:01:20]}  Na4 {[%clk 0:01:57]} 31. Na2 {[%clk 0:01:01]}  Rxd1 {[%clk 0:01:53]} 32. Kxd1 {[%clk 0:01:02]}  Nxb2+ {[%clk 0:01:53]} 33. Kd2 {[%clk 0:01:03]}  Nd3 {[%clk 0:01:51]} 34. Nb4 {[%clk 0:01:03]}  Nxb4 {[%clk 0:01:47]} 35. axb4 {[%clk 0:01:03]}  f5 {[%clk 0:01:46]} 36. Ke3 {[%clk 0:01:00]}  Kf6 {[%clk 0:01:44]} 37. h3 {[%clk 0:00:56]}  h5 {[%clk 0:01:43]} 38. h4 {[%clk 0:00:51]}  g5 {[%clk 0:01:28]} 39. hxg5+ {[%clk 0:00:42]}  Kxg5 {[%clk 0:01:28]} 40. exf5 {[%clk 0:00:43]}  Kxf5 {[%clk 0:01:28]} 41. Kf2 {[%clk 0:00:43]}  Kg5 {[%clk 0:00:43]} 42. Ke3 {[%clk 0:00:43]}  Kf5 {[%clk 0:00:42]} 43. Ke2 {[%clk 0:00:42]}  Ke6 {[%clk 0:00:32]} 44. Kf2 {[%clk 0:00:39]}  Kf6 {[%clk 0:00:31]} 45. Kg2 {[%clk 0:00:35]}  Kg5 {[%clk 0:00:30]} 46. Kh3 {[%clk 0:00:33]}  Kh6 {[%clk 0:00:13]} 47. Kh2 {[%clk 0:00:30]}  Kg6 {[%clk 0:00:13]} 48. Kg2 {[%clk 0:00:29]}  Kg5 {[%clk 0:00:14]} 49. Kh3 {[%clk 0:00:29]}  Kg6 {[%clk 0:00:14]} 50. Kh4 {[%clk 0:00:29]}  Kh6 {[%clk 0:00:15]} 51. g4 {[%clk 0:00:18]}  hxg4 {[%clk 0:00:14]} 52. fxg4 {[%clk 0:00:19]}  Kg6 {[%clk 0:00:14]} 53. Kg3 {[%clk 0:00:17]}  Kf6 {[%clk 0:00:12]} 54. Kf2 {[%clk 0:00:17]}  Kg5 {[%clk 0:00:12]} 55. Kf3 {[%clk 0:00:15]}  Kh4 {[%clk 0:00:10]} 56. Ke4 {[%clk 0:00:15]}  Kxg4 {[%clk 0:00:11]} 57. Kxe5 {[%clk 0:00:15]}  Kf3 {[%clk 0:00:12]} 58. Kd5 {[%clk 0:00:15]}  Ke3 {[%clk 0:00:13]} 59. Kc6 {[%clk 0:00:16]}  Kd3 {[%clk 0:00:13]} 60. Kxb6 {[%clk 0:00:15]}  Kxc3 {[%clk 0:00:14]} 61. Kxb5 {[%clk 0:00:16]}  Kb3 {[%clk 0:00:11]} 62. Ka5 {[%clk 0:00:15]}  c3 {[%clk 0:00:11]} 63. b5 {[%clk 0:00:15]}  c2 {[%clk 0:00:12]} 64. b6 {[%clk 0:00:16]}  c1=Q {[%clk 0:00:12]} 65. b7 {[%clk 0:00:16]}  Qc7+ {[%clk 0:00:13]} 0-1


[Site "https://www.chess.com"]

[Event "Titled Tuesday Blitz December 14 2021"]
[White "Wang, Justin"]
[Black "Chigaev, Maksim"]
[WhiteFideId "30911370"]
[BlackFideId "4108116"]
[WhiteElo "2478"]
[BlackElo "2546"]
[Result "1-0"]
[Round "05"]
[TimeControl "180+1"]
[Date "2021.12.14"]
[WhiteClock "0:01:19"]
[BlackClock "0:00:02"]

1. e4 {[%clk 0:03:00]}  e6 {[%clk 0:02:55]} 2. d4 {[%clk 0:02:57]}  d5 {[%clk 0:02:55]} 3. exd5 {[%clk 0:02:54]}  exd5 {[%clk 0:02:55]} 4. Nf3 {[%clk 0:02:53]}  Bd6 {[%clk 0:02:53]} 5. c4 {[%clk 0:02:51]}  Nf6 {[%clk 0:02:52]} 6. c5 {[%clk 0:02:49]}  Be7 {[%clk 0:02:53]} 7. Nc3 {[%clk 0:02:47]}  O-O {[%clk 0:02:45]} 8. Be2 {[%clk 0:02:44]}  Re8 {[%clk 0:02:36]} 9. O-O {[%clk 0:02:42]}  Nbd7 {[%clk 0:02:35]} 10. Bd3 {[%clk 0:02:40]}  Nf8 {[%clk 0:02:33]} 11. Qc2 {[%clk 0:02:38]}  c6 {[%clk 0:02:31]} 12. h3 {[%clk 0:02:36]}  Ne6 {[%clk 0:02:23]} 13. Re1 {[%clk 0:02:34]}  g6 {[%clk 0:02:23]} 14. b4 {[%clk 0:02:32]}  Nh5 {[%clk 0:02:14]} 15. Be3 {[%clk 0:02:29]}  Bf6 {[%clk 0:02:06]} 16. Qd2 {[%clk 0:02:27]}  Bd7 {[%clk 0:01:58]} 17. b5 {[%clk 0:02:22]}  Qc7 {[%clk 0:01:44]} 18. a4 {[%clk 0:02:19]}  a5 {[%clk 0:01:12]} 19. b6 {[%clk 0:02:17]}  Qd8 {[%clk 0:01:07]} 20. g3 {[%clk 0:02:11]}  Bg7 {[%clk 0:01:04]} 21. Bf1 {[%clk 0:02:07]}  f5 {[%clk 0:01:01]} 22. Ne2 {[%clk 0:02:04]}  Nf6 {[%clk 0:00:54]} 23. Qc1 {[%clk 0:02:00]}  Ne4 {[%clk 0:00:54]} 24. h4 {[%clk 0:01:58]}  Re7 {[%clk 0:00:39]} 25. Nf4 {[%clk 0:01:56]}  Qf8 {[%clk 0:00:35]} 26. Nxe6 {[%clk 0:01:53]}  Bxe6 {[%clk 0:00:36]} 27. Bf4 {[%clk 0:01:51]}  Rae8 {[%clk 0:00:33]} 28. Ra2 {[%clk 0:01:45]}  Bc8 {[%clk 0:00:32]} 29. Rc2 {[%clk 0:01:42]}  h6 {[%clk 0:00:30]} 30. Ne5 {[%clk 0:01:40]}  Qf6 {[%clk 0:00:13]} 31. f3 {[%clk 0:01:37]}  g5 {[%clk 0:00:14]} 32. fxe4 {[%clk 0:01:35]}  gxf4 {[%clk 0:00:11]} 33. exd5 {[%clk 0:01:36]}  fxg3 {[%clk 0:00:10]} 34. Qf4 {[%clk 0:01:33]}  cxd5 {[%clk 0:00:09]} 35. Bb5 {[%clk 0:01:30]}  Rf8 {[%clk 0:00:04]} 36. Rg2 {[%clk 0:01:27]}  Be6 {[%clk 0:00:03]} 37. Re3 {[%clk 0:01:24]}  Kh7 {[%clk 0:00:02]} 38. Rexg3 {[%clk 0:01:22]}  Bh8 {[%clk 0:00:02]} 39. Rg6 {[%clk 0:01:19]} 1-0


[Site "https://www.chess.com"]